fUSD/lending_fUSD_20260226
["ID","MTS","AMOUNT","RATE_DAILY","PERIOD"]
[406700798,1772099446718,-871.16837454,0.000169,2]
[406700802,1772099446742,-431.885,0.000169,2]
[406700805,1772099446758,-359.69059197,0.000169,2]
[406700807,1772099446771,-1826.56410682,0.000169,2]
[406700809,1772099446782,-1123.71239335,0.000169,2]
[406700811,1772099446793,-949.65,0.000169,2]
[406700921,1772100631361,-500.0,7.602e-05,2]
[406700923,1772100631371,-166.66,7.83e-05,2]
[406700925,1772100631382,-69.24085166,8.088e-05,2]
[406700927,1772100631567,-97.41914834,8.088e-05,2]
[406700928,1772100631577,-1000.0,8.219e-05,2]
[406700929,1772100631587,-456.24,8.219e-05,2]
[406700930,1772100631597,-166.66,8.347e-05,2]
[406700931,1772100631606,-580.0,8.36e-05,2]
[406700932,1772100631616,-300.0,8.36e-05,2]
[406700933,1772100631628,-300.0,8.36e-05,2]
[406700934,1772100631637,-300.0,8.36e-05,2]
[406700935,1772100631647,-1200.0,8.36e-05,2]
[406700936,1772100631663,-300.0,8.36e-05,2]
[406700937,1772100631681,-195.0,8.362e-05,2]
[406700938,1772100631695,-195.0,8.362e-05,2]
[406700939,1772100631712,-195.0,8.362e-05,2]
[406700940,1772100631729,-195.0,8.362e-05,2]
[406700941,1772100631746,-195.0,8.362e-05,2]
[406700942,1772100631759,-250.0,8.362e-05,2]
[406700943,1772100631773,-300.0,8.362e-05,2]
[406700944,1772100631789,-300.0,8.362e-05,2]
[406700945,1772100631807,-300.0,8.362e-05,2]
[406700946,1772100631824,-300.0,8.362e-05,2]
[406700947,1772100631842,-300.0,8.362e-05,2]
[406700948,1772100631858,-166.66,8.605e-05,2]
[406700949,1772100631875,-456.24,8.676e-05,2]
[406700950,1772100631890,-166.66,8.863e-05,2]
[406700951,1772100631908,-361.0,8.961e-05,2]
[406700952,1772100631924,-1280.0,9.017e-05,2]
[406700953,1772100631936,-979.0,9.083e-05,2]
[406700954,1772100631952,-166.66,9.122e-05,2]
[406700955,1772100631966,-456.24,9.132e-05,2]
[406700956,1772100631977,-420.0,9.196e-05,2]
[406700957,1772100631993,-1680.0,9.196e-05,2]
[406700958,1772100632008,-1000.0,9.247e-05,2]
[406700959,1772100632021,-279.0,9.337e-05,2]
[406700960,1772100632037,-613.0,9.388e-05,2]
[406700961,1772100632051,-456.24,9.589e-05,2]
[406700962,1772100632066,-205.0,9.8e-05,2]
[406700963,1772100632081,-712.0,9.81e-05,2]
[406700964,1772100632095,-150.0,9.828e-05,2]
[406700965,1772100632108,-1805.0,9.829e-05,2]
[406700966,1772100632122,-807.0,9.849e-05,2]
[406700967,1772100632135,-446361.83207139,9.85e-05,2]
[406700968,1772100637418,-461.74614276,9.849e-05,2]
[406700969,1772100637427,-912.39385724,9.85e-05,2]
[406700971,1772100637471,-2381.6089235,9.85e-05,2]
[406700972,1772100637483,-1623.70486216,9.85e-05,2]
[406700973,1772100637526,-451.15504761,9.85e-05,2]
[406700974,1772100637537,-3847.83174617,9.85e-05,2]
[406700975,1772100637580,-1364.88945289,9.85e-05,2]
[406700976,1772100637595,-1554.53461667,9.85e-05,2]
[406700977,1772100637635,-5018.84606289,9.85e-05,2]
[406700983,1772100639625,-398.23705892,9.85e-05,2]
[406700984,1772100639637,-316345.55340372,9.85e-05,2]
[406700985,1772100639679,-1280.8790409,9.85e-05,2]
[406700986,1772100639690,-1040.7,9.85e-05,2]
[406700987,1772100639949,-961.69544861,9.85e-05,2]
[406700988,1772100639962,-11140.9429633,9.85e-05,2]
[406700989,1772100640004,-590.72355662,9.85e-05,2]
[406700990,1772100640168,-1030.70228,9.85e-05,2]
[406701017,1772100642739,-524700.96950459,9.85e-05,2]
[406701018,1772100642898,-488.83997011,9.85e-05,2]
[406701253,1772101625673,300.0,8.8e-05,3]
[406701254,1772101627777,600.0,8.9e-05,3]
[406701255,1772101629867,900.0,9e-05,3]
[406701278,1772101831506,-1200.0,7.157e-05,2]
[406701279,1772101831515,-250.0,7.157e-05,2]
[406701280,1772101831526,-211.0,7.158e-05,2]
[406701281,1772101831534,-65.8840699,7.386e-05,2]
[406701282,1772101831545,-267.49128622,7.386e-05,2]
[406701283,1772101831555,-288.46856121,7.386e-05,2]
[406701284,1772101831566,-2413.61553984,7.386e-05,2]
[406701285,1772101831577,-732.20658345,7.386e-05,2]
[406701286,1772101831588,-965.09590394,7.386e-05,2]
[406701287,1772101831669,-341.348914,7.386e-05,2]
[406701288,1772101831681,-259.26449756,7.386e-05,2]
[406701289,1772101831690,-500.0,7.602e-05,2]
[406701290,1772101831699,-250.0,7.873e-05,2]
[406701291,1772101831708,-1680.0,7.873e-05,2]
[406701292,1772101831717,-150.0,8.177e-05,2]
[406701293,1772101831726,-6055.704669,8.178e-05,2]
[406701294,1772101831737,-1500.0,8.251e-05,2]
[406701295,1772101831747,-772.91,8.456e-05,2]
[406701296,1772101831757,-1680.0,8.66e-05,2]
[406701297,1772101831769,-250.0,8.925e-05,2]
[406701298,1772101831778,-500.0,8.966e-05,2]
[406701300,1772101831787,-426.74420243,8.966e-05,2]
[406701301,1772101831796,-500.0,8.966e-05,2]
[406701302,1772101831806,-500.0,8.966e-05,2]
[406701303,1772101831815,-500.0,8.966e-05,2]
[406701304,1772101831824,-600.0,8.966e-05,2]
[406701305,1772101831834,-500.0,8.966e-05,2]
[406701306,1772101831843,-500.0,8.966e-05,2]
[406701307,1772101831854,-500.0,8.966e-05,2]
[406701308,1772101831863,-201.34278305,8.966e-05,2]
[406701309,1772101831872,-666.08525595,8.966e-05,2]
[406701310,1772101831881,-666.08525595,8.966e-05,2]
[406701311,1772101831891,-666.08525595,8.966e-05,2]
[406701312,1772101831900,-666.08525595,8.966e-05,2]
[406701313,1772101831909,-403.81500685,8.966e-05,2]
[406701314,1772101831918,-666.08525595,8.966e-05,2]
[406701315,1772101831928,-666.08525595,8.966e-05,2]
[406701316,1772101831937,-666.08525595,8.966e-05,2]
[406701317,1772101831949,-666.08525595,8.966e-05,2]
[406701318,1772101831958,-666.08525595,8.966e-05,2]
[406701319,1772101831968,-666.08525595,8.966e-05,2]
[406701320,1772101831977,-666.08525595,8.966e-05,2]
[406701321,1772101831986,-666.08525595,8.966e-05,2]
[406701322,1772101831995,-666.08525595,8.966e-05,2]
[406701323,1772101832005,-666.08525595,8.966e-05,2]
[406701324,1772101832014,-666.08525595,8.966e-05,2]
[406701325,1772101832023,-666.08525595,8.966e-05,2]
[406701326,1772101832033,-666.08525595,8.966e-05,2]
[406701327,1772101832042,-666.08525595,8.966e-05,2]
[406701328,1772101832052,-666.08525595,8.966e-05,2]
[406701329,1772101832061,-666.08525595,8.966e-05,2]
[406701330,1772101832070,-666.08525595,8.966e-05,2]
[406701331,1772101832080,-666.08525595,8.966e-05,2]
[406701333,1772101832236,-666.08525595,8.966e-05,2]
[406701334,1772101832253,-666.08525595,8.966e-05,2]
[406701335,1772101832263,-666.08525595,8.966e-05,2]
[406701336,1772101832272,-666.08525595,8.966e-05,2]
[406701337,1772101832282,-666.08525595,8.966e-05,2]
[406701338,1772101832291,-666.08525595,8.966e-05,2]
[406701339,1772101832301,-666.08525595,8.966e-05,2]
[406701340,1772101832311,-666.08525595,8.966e-05,2]
[406701341,1772101832320,-666.08525595,8.966e-05,2]
[406701342,1772101832330,-666.08525595,8.966e-05,2]
[406701343,1772101832340,-666.08525595,8.966e-05,2]
[406701344,1772101832349,-666.08525595,8.966e-05,2]
[406701345,1772101832359,-666.08525595,8.966e-05,2]
[406701346,1772101832368,-666.08525595,8.966e-05,2]
[406701347,1772101832377,-666.08525595,8.966e-05,2]
[406701348,1772101832387,-666.08525595,8.966e-05,2]
[406701349,1772101832396,-666.08525595,8.966e-05,2]
[406701350,1772101832405,-666.08525595,8.966e-05,2]
[406701351,1772101832414,-666.08525595,8.966e-05,2]
[406701352,1772101832423,-666.08525595,8.966e-05,2]
[406701353,1772101832433,-666.08525595,8.966e-05,2]
[406701354,1772101832442,-666.08525595,8.966e-05,2]
[406701355,1772101832451,-666.08525595,8.966e-05,2]
[406701356,1772101832461,-666.08525595,8.966e-05,2]
[406701357,1772101832470,-666.08525595,8.966e-05,2]
[406701358,1772101832480,-666.08525595,8.966e-05,2]
[406701359,1772101832489,-666.08525595,8.966e-05,2]
[406701360,1772101832498,-666.08525595,8.966e-05,2]
[406701361,1772101832507,-666.08525595,8.966e-05,2]
[406701362,1772101832517,-666.08525595,8.966e-05,2]
[406701363,1772101832527,-666.08525595,8.966e-05,2]
[406701364,1772101832537,-666.08525595,8.966e-05,2]
[406701365,1772101832546,-666.08525595,8.966e-05,2]
[406701366,1772101832556,-500.0,8.966e-05,2]
[406701367,1772101832565,-198.27802623,8.966e-05,2]
[406701368,1772101832574,-500.0,8.966e-05,2]
[406701369,1772101832584,-649.43312456,8.966e-05,2]
[406701370,1772101832593,-649.43312456,8.966e-05,2]
[406701371,1772101832603,-649.43312456,8.966e-05,2]
[406701372,1772101832612,-649.43312456,8.966e-05,2]
[406701373,1772101832622,-649.43312456,8.966e-05,2]
[406701374,1772101832632,-649.43312456,8.966e-05,2]
[406701375,1772101832641,-649.43312456,8.966e-05,2]
[406701376,1772101832656,-649.43312456,8.966e-05,2]
[406701377,1772101832670,-555.57051298,8.966e-05,2]
[406701378,1772101832684,-93.86261158,8.966e-05,2]
[406701379,1772101832694,-649.43312456,8.966e-05,2]
[406701380,1772101832703,-649.43312456,8.966e-05,2]
[406701381,1772101832713,-649.43312456,8.966e-05,2]
[406701382,1772101832722,-649.43312456,8.966e-05,2]
[406701383,1772101832732,-649.43312456,8.966e-05,2]
[406701384,1772101832741,-649.43312456,8.966e-05,2]
[406701385,1772101832751,-649.43312456,8.966e-05,2]
[406701386,1772101832760,-649.43312456,8.966e-05,2]
[406701387,1772101832769,-100.33580479,8.966e-05,2]
[406701388,1772101832780,-549.09731977,8.966e-05,2]
[406701389,1772101832790,-649.43312456,8.966e-05,2]
[406701390,1772101832799,-649.43312456,8.966e-05,2]
[406701391,1772101832808,-649.43312456,8.966e-05,2]
[406701392,1772101832818,-649.43312456,8.966e-05,2]
[406701393,1772101832827,-649.43312456,8.966e-05,2]
[406701394,1772101832836,-649.43312456,8.966e-05,2]
[406701395,1772101832845,-649.43312456,8.966e-05,2]
[406701396,1772101832854,-223.08409839,8.966e-05,2]
[406701408,1772101840047,-426.34902617,8.966e-05,2]
[406701409,1772101840056,-258.81097383,8.966e-05,2]
[406701912,1772102360510,155.27,4.338e-05,2]
[406701913,1772102360708,155.27,4.547e-05,2]
[406701914,1772102361076,155.27,4.756e-05,2]
[406701915,1772102361449,155.27,4.965e-05,2]
[406701916,1772102361635,155.27,5.174e-05,2]
[406701917,1772102362056,155.27,5.382e-05,2]
[406701918,1772102362261,155.27,5.591e-05,2]
[406701919,1772102362460,155.27,5.8e-05,2]
[406701920,1772102362645,155.27,6.009e-05,2]
[406701921,1772102362830,155.27,6.218e-05,2]
[406701922,1772102363024,155.27,6.426e-05,2]
[406702384,1772102841949,800.0,9e-05,3]
[406702385,1772102910906,836.48,0.000152,60]
[406702386,1772102910933,2099.48,0.000152,60]
[406702462,1772103031713,-207.0,6.635e-05,2]
[406702464,1772103031724,-1000.84090024,6.635e-05,2]
[406702466,1772103031736,-404.57355337,6.635e-05,2]
[406702467,1772103031747,-3594.58554639,6.635e-05,2]
[406702468,1772103031757,-250.0,6.635e-05,2]
[406702469,1772103031767,-155.27,6.635e-05,2]
[406702470,1772103031777,-300.0,6.759e-05,2]
[406702471,1772103031787,-217.0,6.759e-05,2]
[406702472,1772103031797,-300.0,6.759e-05,2]
[406702473,1772103031807,-1200.0,6.759e-05,2]
[406702474,1772103031818,-5064.13285656,6.76e-05,2]
[406702475,1772103031828,-155.27,6.844e-05,2]
[406702476,1772103031839,-155.27,7.053e-05,2]
[406702477,1772103031849,-155.27,7.262e-05,2]
[406702478,1772103031858,-250.0,7.299e-05,2]
[406702479,1772103031868,-5000.0,7.299e-05,2]
[406702480,1772103031878,-285.0,7.412e-05,2]
[406702481,1772103031888,-383.0,7.427e-05,2]
[406702482,1772103031898,-166.66,7.435e-05,2]
[406702483,1772103031907,-420.0,7.435e-05,2]
[406702484,1772103031917,-1200.0,7.435e-05,2]
[406702485,1772103031928,-902.0,7.469e-05,2]
[406702487,1772103031938,-155.27,7.47e-05,2]
[406702488,1772103031948,-474.0,7.484e-05,2]
[406702489,1772103031959,-1609.0,7.499e-05,2]
[406702490,1772103031969,-500.0,7.504e-05,2]
[406702491,1772103031979,-604.0,7.536e-05,2]
[406702492,1772103031988,-997.0,7.551e-05,2]
[406702493,1772103031997,-299.0,7.606e-05,2]
[406702494,1772103032007,-219.0,7.606e-05,2]
[406702495,1772103032016,-300.0,7.616e-05,2]
[406702496,1772103032025,-2331.03,7.617e-05,2]
[406702497,1772103032034,-155.27,7.679e-05,2]
[406702498,1772103032046,-166.66,7.68e-05,2]
[406702499,1772103032056,-200.0,7.8e-05,2]
[406702500,1772103032065,-155.27,7.888e-05,2]
[406702501,1772103032074,-958.98809482,7.9e-05,2]
[406702502,1772103032086,-400.0,7.9e-05,2]
[406702503,1772103032095,-166.66,7.926e-05,2]
[406702504,1772103032105,-58386.30878096,7.941e-05,2]
[406702505,1772103032116,-92087.64571376,7.941e-05,2]
[406702506,1772103032128,-341196.16937942,7.941e-05,2]
[406702507,1772103032139,-1254.41808677,7.941e-05,2]
[406702508,1772103032150,-795.683759,7.941e-05,2]
[406702509,1772103032164,-1380.09438079,7.941e-05,2]
[406702510,1772103032175,-387.11639996,7.941e-05,2]
[406702511,1772103032187,-2898.9649607,7.941e-05,2]
[406702512,1772103032202,-963.89757631,7.941e-05,2]
[406702514,1772103037772,-449.33563177,7.941e-05,2]
[406702515,1772103037784,-896.40182499,7.941e-05,2]
[406702517,1772103037933,-7243.67967299,7.941e-05,2]
[406702518,1772103037987,-689.55400669,7.941e-05,2]
[406702519,1772103037999,-1401.9124575,7.941e-05,2]
[406702520,1772103038010,-1000.18778537,7.941e-05,2]
[406702521,1772103038022,-865.69,7.941e-05,2]
[406702522,1772103038033,-671.07308538,7.941e-05,2]
[406702530,1772103040253,-684.86,7.941e-05,2]
[406702531,1772103040515,-6008.50315525,7.941e-05,2]
[406702636,1772103043091,-16146.36300254,7.941e-05,2]
[406702813,1772103362866,-1295.236,7.783e-05,2]
[406702814,1772103362887,-1200.0,7.799e-05,2]
[406702815,1772103362910,-1289.74053733,7.8e-05,2]
[406702816,1772103362932,-1215.02346267,7.8e-05,2]
[406702817,1772103364674,-1202.38622064,7.8e-05,2]
[406702818,1772103364698,-3324.37355659,7.8e-05,2]
[406702819,1772103364942,-473.24022277,7.8e-05,2]
[406702820,1772103366363,-522.40399285,7.8e-05,2]
[406702821,1772103366386,-1832.33191708,7.8e-05,2]
[406702822,1772103366407,-2645.26409007,7.931e-05,2]
[406702823,1772103367165,-5000.0,7.931e-05,2]
[406702824,1772103367745,-5000.0,7.931e-05,2]
[406702825,1772103368238,-5000.0,7.931e-05,2]
[406702826,1772103368599,-672.89586321,7.931e-05,2]
[406702827,1772103368619,-150.0,7.94e-05,2]
[406702828,1772103368642,-250.0,7.94e-05,2]
[406702829,1772103368672,-3927.10413679,7.941e-05,2]
[406702830,1772103369182,-5000.0,7.941e-05,2]
[406702858,1772103814666,153.0,5.479e-05,2]
[406703174,1772104231887,-300.0,6.999e-05,2]
[406703176,1772104231904,-995.21988168,6.999e-05,2]
[406703178,1772104231917,-204.78011832,6.999e-05,2]
[406703180,1772104231927,-1081.22843438,7e-05,2]
[406703183,1772104231943,-1551.25970538,7e-05,2]
[406703184,1772104231953,-82.7492446,7e-05,2]
[406703185,1772104231965,-711.05,7e-05,2]
[406703186,1772104231976,-2256.41771873,7e-05,2]
[406703187,1772104231994,-259.15599769,7e-05,2]
[406703188,1772104232006,-1407.00725734,7e-05,2]
[406703189,1772104232017,-347.43508066,7e-05,2]
[406703190,1772104232028,-20288.73484819,7e-05,2]
[406703191,1772104232037,-250.0,7.699e-05,2]
[406703192,1772104232047,-304.12596972,7.699e-05,2]
[406703193,1772104232056,-250.0,7.699e-05,2]
[406703194,1772104232066,-988.17059478,7.699e-05,2]
[406703195,1772104232089,-4011.82940522,7.699e-05,2]
[406703196,1772104232104,-420.0,7.699e-05,2]
[406703197,1772104232120,-1680.0,7.699e-05,2]
[406703198,1772104232138,-716.0,7.726e-05,2]
[406703199,1772104232154,-150.0,7.74e-05,2]
[406703201,1772104232167,-25637.67403406,7.741e-05,2]
[406703202,1772104232187,-23273.79209208,7.741e-05,2]
[406703205,1772104232207,-687.16138692,7.741e-05,2]
[406703208,1772104232227,-492.21212702,7.741e-05,2]
[406703211,1772104232246,-6779.46985046,7.741e-05,2]
[406703214,1772104232268,-321.55982235,7.741e-05,2]
[406703215,1772104232288,-891.95176507,7.741e-05,2]
[406703222,1772104238032,-735.44834031,7.741e-05,2]
[406703223,1772104238056,-3059.22637876,7.741e-05,2]
[406703224,1772104238086,-449.3404125,7.741e-05,2]
[406703225,1772104238104,-780.00000001,7.741e-05,2]
[406703240,1772104240189,-505.08149855,7.741e-05,2]
[406703241,1772104240282,-383.32134454,7.741e-05,2]
[406703242,1772104240294,-505.17097996,7.741e-05,2]
[406703243,1772104240336,-1814009.08484334,7.741e-05,2]
[406703244,1772104240347,-3897.78383234,7.741e-05,2]
[406703245,1772104240358,-523.34287504,7.741e-05,2]
[406703246,1772104240601,-500.0,7.741e-05,2]
[406703251,1772104244703,-14478.83920229,7.741e-05,2]
[406703252,1772104244716,-2082.54561959,7.741e-05,2]
[406703253,1772104244755,-39427.00368159,7.741e-05,2]
[406703295,1772104850050,159.0,4.105e-05,2]
[406703296,1772104850238,159.0,4.585e-05,2]
[406703297,1772104850448,159.0,5.065e-05,2]
[406703298,1772104850661,159.0,5.545e-05,2]
[406703299,1772104850868,159.0,6.025e-05,2]
[406703300,1772104851072,159.0,6.505e-05,2]
[406703303,1772105286612,202.5,6e-05,2]
[406703307,1772105432039,-166.67,6.836e-05,2]
[406703308,1772105432049,-384.64,6.859e-05,2]
[406703309,1772105432058,-200.0,6.909e-05,2]
[406703310,1772105432067,-159.0,6.985e-05,2]
[406703311,1772105432076,-500.0,7.312e-05,2]
[406703312,1772105432086,-166.67,7.4e-05,2]
[406703313,1772105432095,-1770.0,7.458e-05,2]
[406703314,1772105432104,-159.0,7.465e-05,2]
[406703315,1772105432112,-1082.28134377,7.473e-05,2]
[406703316,1772105432121,-838.0,7.518e-05,2]
[406703317,1772105432130,-477.0,7.526e-05,2]
[406703318,1772105432139,-664.0,7.533e-05,2]
[406703319,1772105432148,-325.0,7.534e-05,2]
[406703320,1772105432157,-1096.0,7.534e-05,2]
[406703321,1772105432166,-300.0,7.538e-05,2]
[406703322,1772105432175,-1200.0,7.538e-05,2]
[406703323,1772105432184,-150.0,7.539e-05,2]
[406703324,1772105432193,-500.0,7.54e-05,2]
[406703325,1772105432202,-516.35595448,7.54e-05,2]
[406703326,1772105432211,-431.71622795,7.54e-05,2]
[406703327,1772105432220,-500.0,7.54e-05,2]
[406703328,1772105432229,-500.0,7.54e-05,2]
[406703329,1772105432238,-500.0,7.54e-05,2]
[406703330,1772105432248,-500.0,7.54e-05,2]
[406703331,1772105432257,-500.0,7.54e-05,2]
[406703332,1772105432271,-500.0,7.54e-05,2]
[406703333,1772105432281,-500.0,7.54e-05,2]
[406703334,1772105432291,-500.0,7.54e-05,2]
[406703335,1772105432301,-500.0,7.54e-05,2]
[406703336,1772105432310,-500.0,7.54e-05,2]
[406703337,1772105432319,-500.0,7.54e-05,2]
[406703338,1772105432329,-500.0,7.54e-05,2]
[406703339,1772105432341,-500.0,7.54e-05,2]
[406703340,1772105432351,-500.0,7.54e-05,2]
[406703341,1772105432361,-500.0,7.54e-05,2]
[406703342,1772105432370,-500.0,7.54e-05,2]
[406703343,1772105432379,-500.0,7.54e-05,2]
[406703344,1772105432388,-500.0,7.54e-05,2]
[406703345,1772105432398,-500.0,7.54e-05,2]
[406703347,1772105432407,-500.0,7.54e-05,2]
[406703349,1772105432416,-500.0,7.54e-05,2]
[406703351,1772105432426,-500.0,7.54e-05,2]
[406703352,1772105432435,-500.0,7.54e-05,2]
[406703353,1772105432444,-500.0,7.54e-05,2]
[406703354,1772105432454,-292.72643585,7.54e-05,2]
[406703355,1772105432474,-500.0,7.54e-05,2]
[406703356,1772105432483,-500.0,7.54e-05,2]
[406703357,1772105432493,-500.0,7.54e-05,2]
[406703358,1772105432503,-550.0,7.54e-05,2]
[406703359,1772105432512,-500.0,7.54e-05,2]
[406703360,1772105432523,-500.0,7.54e-05,2]
[406703361,1772105432532,-500.0,7.54e-05,2]
[406703362,1772105432543,-500.0,7.54e-05,2]
[406703363,1772105432553,-500.0,7.54e-05,2]
[406703364,1772105432563,-500.0,7.54e-05,2]
[406703365,1772105432575,-428822.6987624,7.541e-05,2]
[406703366,1772105432589,-61925.93635215,7.541e-05,2]
[406703367,1772105432602,-6957.45202423,7.541e-05,2]
[406703378,1772105438230,-1276.78651,7.541e-05,2]
[406703379,1772105438241,-593.41340116,7.541e-05,2]
[406703380,1772105438282,-533.785,7.541e-05,2]
[406703381,1772105438293,-1000.0,7.541e-05,2]
[406703382,1772105438394,-36899.23472956,7.541e-05,2]
[406703383,1772105438405,-1244.377,7.541e-05,2]
[406703399,1772105440406,-1460746.3162205,7.541e-05,2]
[406703400,1772105440416,-250.0,7.545e-05,2]
[406703401,1772105440426,-473.0,7.549e-05,2]
[406703402,1772105440435,-1019.0,7.558e-05,2]
[406703403,1772105440446,-155.0,7.599e-05,2]
[406703404,1772105440456,-259.0,7.599e-05,2]
[406703405,1772105440467,-342.0,7.614e-05,2]
[406703406,1772105440477,-227.0,7.621e-05,2]
[406703407,1772105440487,-582.1,7.63e-05,2]
[406703408,1772105440497,-452.0,7.63e-05,2]
[406703409,1772105440507,-9999.99,7.632e-05,2]
[406703410,1772105440516,-9999.99,7.632e-05,2]
[406703411,1772105440527,-150.99,7.632e-05,2]
[406703412,1772105440536,-9999.99,7.632e-05,2]
[406703413,1772105440546,-5312.87,7.632e-05,2]
[406703414,1772105440555,-9999.99,7.632e-05,2]
[406703415,1772105440565,-999.99,7.632e-05,2]
[406703416,1772105440578,-299.99,7.632e-05,2]
[406703417,1772105440589,-9999.99,7.632e-05,2]
[406703418,1772105440598,-9386.31,7.632e-05,2]
[406703419,1772105440607,-155.0,7.64e-05,2]
[406703420,1772105440616,-946.44474214,7.64e-05,2]
[406703421,1772105440626,-458.57280982,7.641e-05,2]
[406703422,1772105440635,-1036.189,7.641e-05,2]
[406703423,1772105440644,-560.0,7.644e-05,2]
[406703424,1772105440654,-1500.0,7.649e-05,2]
[406703425,1772105440663,-1591.19,7.659e-05,2]
[406703426,1772105440672,-1135.0,7.66e-05,2]
[406703427,1772105440682,-384.64,7.716e-05,2]
[406703428,1772105440692,-37901.47,7.722e-05,2]
[406703429,1772105440702,-12023.38016952,7.741e-05,2]
[406703430,1772105440711,-500.0,7.832e-05,2]
[406703431,1772105440721,-500.0,7.832e-05,2]
[406703432,1772105440730,-500.0,7.832e-05,2]
[406703433,1772105440740,-500.0,7.832e-05,2]
[406703434,1772105440749,-500.0,7.832e-05,2]
[406703435,1772105440758,-500.0,7.832e-05,2]
[406703436,1772105440767,-407.96536498,7.832e-05,2]
[406703437,1772105440777,-166.67,7.964e-05,2]
[406703438,1772105440786,-500.0,7.971e-05,2]
[406703439,1772105440795,-884.01050039,8e-05,2]
[406703440,1772105440804,-1088.93361277,8e-05,2]
[406703441,1772105440813,-2017.92265067,8e-05,2]
[406703442,1772105440823,-9773.11,8.079e-05,2]
[406703443,1772105440833,-166.66,8.171e-05,2]
[406703444,1772105440842,-500.0,8.219e-05,2]
[406703445,1772105440853,-408.79461836,8.219e-05,2]
[406703446,1772105440863,-500.0,8.219e-05,2]
[406703447,1772105440873,-500.0,8.219e-05,2]
[406703448,1772105440883,-500.0,8.219e-05,2]
[406703449,1772105440892,-500.0,8.219e-05,2]
[406703450,1772105440903,-450.0,8.219e-05,2]
[406703451,1772105440912,-162.43895648,8.219e-05,2]
[406703452,1772105440923,-150.65376,8.219e-05,2]
[406703453,1772105440932,-290.37,8.219e-05,2]
[406703454,1772105440942,-1000.0,8.219e-05,2]
[406703455,1772105440952,-3921.74,8.219e-05,2]
[406703456,1772105440961,-2903.08,8.219e-05,2]
[406703457,1772105440970,-390.0,8.292e-05,2]
[406703458,1772105440979,-1680.0,8.292e-05,2]
[406703459,1772105440990,-255.0,8.293e-05,2]
[406703460,1772105441000,-155.0,8.404e-05,2]
[406703461,1772105441009,-166.66,8.416e-05,2]
[406703462,1772105441019,-384.64,8.574e-05,2]
[406703463,1772105441029,-166.66,8.662e-05,2]
[406703464,1772105441038,-290.37,8.676e-05,2]
[406703465,1772105441047,-188.3172,8.68e-05,2]
[406703466,1772105441057,-4618.0,8.752e-05,2]
[406703467,1772105441066,-328.76,9.1e-05,2]
[406703468,1772105441075,-2351.0,9.121e-05,2]
[406703469,1772105441085,-433.0,9.123e-05,2]
[406703470,1772105441094,-290.37,9.132e-05,2]
[406703471,1772105441103,-155.0,9.168e-05,2]
[406703472,1772105441113,-1000.0,9.247e-05,2]
[406703473,1772105441123,-384.64,9.431e-05,2]
[406703474,1772105441133,-1569.43003623,9.47e-05,2]
[406703475,1772105441142,-350.0,9.519e-05,2]
[406703476,1772105441153,-350.0,9.519e-05,2]
[406703477,1772105441163,-350.0,9.522e-05,2]
[406703478,1772105441173,-290.37,9.589e-05,2]
[406703479,1772105441182,-1047.41612453,9.7e-05,2]
[406703480,1772105441192,-1935.13694804,9.7e-05,2]
[406703481,1772105441202,-922.66011433,9.7e-05,2]
[406703482,1772105441212,-1000.0,9.77e-05,2]
[406703483,1772105441221,-1000.0,9.77e-05,2]
[406703485,1772105441231,-631.8277679,9.77e-05,2]
[406703486,1772105441240,-350.0,9.805e-05,2]
[406703487,1772105441249,-28353.88105348,9.95e-05,2]
[406703488,1772105441259,-484.93406409,0.0001,2]
[406703489,1772105441272,-203.74320975,0.0001,2]
[406703490,1772105441281,-28019.0,0.0001,2]
[406703491,1772105441290,-1000.0,0.0001,2]
[406703492,1772105441301,-1000.0,0.0001,2]
[406703493,1772105441312,-1000.0,0.0001,2]
[406703494,1772105441322,-1000.0,0.0001,2]
[406703495,1772105441331,-1000.0,0.0001,2]
[406703496,1772105441342,-1000.0,0.0001,2]
[406703497,1772105441351,-755.48875966,0.0001,2]
[406703498,1772105441361,-151.0,0.0001,2]
[406703499,1772105441371,-151.0,0.0001,2]
[406703500,1772105441380,-151.0,0.0001,2]
[406703501,1772105441390,-183.44156,0.0001,2]
[406703502,1772105441399,-980.09339,0.0001,2]
[406703503,1772105441409,-980.09338,0.0001,2]